bitfinex-derivatives/quotes_BTCF0:USTF0_20240825
["timestamp","ask_amount","ask_price","bid_price","bid_amount"]
[1724583998684,0.003,64002.0,64001.0,0.012]
[1724584002274,0.15325188,64002.0,64001.0,0.012]
[1724584002475,0.2216525,64002.0,64001.0,0.012]
[1724584002788,0.22165138,64002.0,64001.0,0.012]
[1724584003179,0.0967166,64002.0,64001.0,0.012]
[1724584004273,0.05847893,64002.0,64001.0,0.012]
[1724584004475,0.0967166,64002.0,64001.0,0.012]
[1724584004682,0.05847893,64002.0,64001.0,0.012]
[1724584009176,0.44187462,64002.0,64001.0,0.012]
[1724584009379,0.44187462,64002.0,64001.0,0.05878957]
[1724584014580,0.44187462,64002.0,64001.0,0.012]
[1724584014789,0.44187462,64002.0,64001.0,0.05879743]
[1724584014988,0.44187462,64002.0,64001.0,0.012]
[1724584015590,0.44187462,64002.0,64001.0,0.05879175]
[1724584015788,0.44187462,64002.0,64001.0,0.012]
[1724584015982,0.44187462,64002.0,64001.0,0.05879009]
[1724584017588,0.3638,64002.0,64001.0,0.05879009]
[1724584017789,0.44188891,64002.0,64001.0,0.05879009]
[1724584017982,0.3638,64002.0,64001.0,0.05879009]
[1724584018887,0.44189102,64002.0,64001.0,0.05877427]
[1724584019185,0.44189037,64002.0,64001.0,0.05877427]
[1724584019491,0.3638,64002.0,64001.0,0.05877427]
[1724584019790,0.44189196,64002.0,64001.0,0.05877427]
[1724584020188,0.44189196,64002.0,64001.0,0.012]
[1724584020391,0.3638,64002.0,64001.0,0.05877647]
[1724584020697,0.44189573,64002.0,64001.0,0.05877647]
[1724584020885,0.44189553,64002.0,64001.0,0.05877647]
[1724584021186,0.44189551,64002.0,64001.0,0.012]
[1724584021384,0.3638,64002.0,64001.0,0.05877748]
[1724584022077,0.4418982,64002.0,64001.0,0.012]
[1724584023190,0.3638,64002.0,64001.0,0.012]
[1724584023394,0.38911683,64002.0,64001.0,0.012]
[1724584023591,0.3638,64002.0,64001.0,0.012]
[1724584024180,0.45751708,64002.0,64001.0,0.012]
[1724584027192,0.43220078,64002.0,64001.0,0.012]
[1724584027379,0.45751794,64002.0,64001.0,0.012]
[1724584031785,0.5825082,64002.0,64001.0,0.002]
[1724584031985,0.45751794,64002.0,63984.0,0.6831]
[1724584032190,0.06250368,63990.0,63989.0,0.06]
[1724584032595,0.06250368,63991.0,63989.0,0.06]
[1724584032788,0.0004,63990.0,63989.0,0.06]
[1724584033184,0.0004,63990.0,63989.0,0.061]
[1724584034101,0.0024,63990.0,63989.0,0.062]
[1724584034301,0.04924574,63990.0,63989.0,0.062]
[1724584034493,0.04924574,63990.0,63989.0,0.1398835]
[1724584034798,0.07518174,63990.0,63989.0,0.062]
[1724584035597,0.028336,63990.0,63989.0,0.18000627]
[1724584035800,0.07818174,63990.0,63989.0,0.062]
[1724584036000,0.078936,63990.0,63989.0,0.062]
[1724584037306,0.078936,63990.0,63989.0,0.12434634]
[1724584038195,0.12575906,63990.0,63989.0,0.12434634]
[1724584041003,0.078936,63990.0,63989.0,0.12434634]
[1724584041189,0.12575906,63990.0,63989.0,0.12434634]
[1724584041499,0.078936,63990.0,63989.0,0.12434634]
[1724584042899,0.031336,63990.0,63989.0,0.062]
[1724584045599,0.031336,63990.0,63989.0,0.4228]
[1724584046891,0.031336,63990.0,63989.0,0.062]
[1724584047100,0.031336,63990.0,63989.0,0.4228]
[1724584047301,0.05665481,63990.0,63989.0,0.4228]
[1724584048298,0.05665481,63990.0,63989.0,0.062]
[1724584048695,0.05665481,63990.0,63989.0,0.4228]
[1724584048894,0.05665481,63990.0,63989.0,0.062]
[1724584049106,0.05665481,63990.0,63989.0,0.4228]
[1724584049303,0.05665481,63990.0,63989.0,0.062]
[1724584049507,0.05665481,63990.0,63989.0,0.4228]
[1724584054404,0.031336,63990.0,63989.0,0.4228]
[1724584055407,0.07815887,63990.0,63989.0,0.4228]
[1724584055603,0.031336,63990.0,63989.0,0.4228]
[1724584056511,0.392136,63990.0,63989.0,0.062]
[1724584056811,0.439436,63990.0,63989.0,0.002]
[1724584057108,0.51747411,63990.0,63989.0,0.002]
[1724584058304,0.439436,63990.0,63989.0,0.002]
[1724584060608,0.439436,63990.0,63985.0,0.046772]
[1724584060609,0.51747411,63990.0,63985.0,0.046772]
[1724584060808,0.06242141,63986.0,63984.0,0.046772]
[1724584060997,0.0949,63985.0,63984.0,0.046772]
[1724584061402,0.0949,63985.0,63983.0,0.00023444]
[1724584061403,0.15039293,63985.0,63983.0,0.00023444]
[1724584061602,0.05549293,63984.0,63983.0,0.00023444]
[1724584062201,0.05589293,63984.0,63983.0,0.00023444]
[1724584062810,0.52477293,63984.0,63983.0,0.00023444]
[1724584063510,0.52777293,63984.0,63983.0,0.00023444]
[1724584064099,0.53077293,63984.0,63983.0,0.00023444]
[1724584064714,0.06189293,63984.0,63983.0,0.00023444]
[1724584065902,0.06189677,63984.0,63983.0,0.00023444]
[1724584066108,0.42269677,63984.0,63983.0,0.00023444]
[1724584069214,0.39252494,63984.0,63983.0,0.00023444]
[1724584069516,0.3672,63984.0,63983.0,0.00023444]
[1724584070118,0.0064,63984.0,63983.0,0.00023444]
[1724584070313,0.3672,63984.0,63983.0,0.00023444]
[1724584071011,0.0064,63984.0,63983.0,0.00023444]
[1724584071308,0.3672,63984.0,63983.0,0.00023444]
[1724584075210,0.0064,63984.0,63983.0,0.00023444]
[1724584075519,0.3672,63984.0,63983.0,0.00023444]
[1724584076015,0.0064,63984.0,63983.0,0.00023444]
[1724584076216,0.3672,63984.0,63983.0,0.00023444]
[1724584076413,0.0317246,63984.0,63983.0,0.00023444]
[1724584076613,0.3925246,63984.0,63983.0,0.00023444]
[1724584080106,0.0317246,63984.0,63983.0,0.00023444]
[1724584080310,0.48604705,63984.0,63983.0,0.00023444]
[1724584080510,0.50952705,63984.0,63983.0,0.00023444]
[1724584080920,0.50952717,63984.0,63983.0,0.00023444]
[1724584081224,0.41600472,63984.0,63983.0,0.00023444]
[1724584082620,0.44617731,63984.0,63983.0,0.00023444]
[1724584084311,0.46871034,63984.0,63983.0,0.00023444]
[1724584085327,0.41600568,63984.0,63983.0,0.00023444]
[1724584089513,0.05520568,63984.0,63983.0,0.00023444]
[1724584089713,0.41600568,63984.0,63983.0,0.00023444]
[1724584090312,0.05520568,63984.0,63983.0,0.00023444]
[1724584090513,0.41600568,63984.0,63983.0,0.00023444]
[1724584091320,0.44617854,63984.0,63983.0,0.00023444]
[1724584092515,0.55553487,63984.0,63983.0,0.00023444]
[1724584092715,0.44617854,63984.0,63983.0,0.00023444]
[1724584092916,0.55553487,63984.0,63983.0,0.00023444]
[1724584094017,0.44617854,63984.0,63983.0,0.00023444]
[1724584094222,0.44617854,63984.0,63971.0,0.407572]
[1724584094223,1.31505854,63984.0,63971.0,0.407572]
[1724584094413,0.09372798,63977.0,63971.0,0.407572]
[1724584094616,0.0935,63976.0,63971.0,0.407572]
[1724584094817,0.21255366,63976.0,63971.0,0.407572]
[1724584095030,0.0004,63972.0,63971.0,0.407572]
[1724584095420,0.0004,63972.0,63971.0,0.416572]
[1724584095622,0.0004,63972.0,63971.0,0.3698]
[1724584096019,0.0004,63972.0,63971.0,0.3788]
[1724584096218,0.0004,63972.0,63971.0,0.018]
[1724584096418,0.02572705,63972.0,63971.0,0.018]
[1724584097823,0.02572705,63972.0,63971.0,0.028]
[1724584099226,0.0004,63972.0,63971.0,0.028]
[1724584100326,0.04724551,63972.0,63971.0,0.028]
[1724584101634,0.07365208,63972.0,63971.0,0.028]
[1724584106934,0.02680657,63972.0,63971.0,0.09039716]
[1724584114233,0.02680657,63972.0,63971.0,0.028]
[1724584114426,0.05213407,63972.0,63971.0,0.028]
[1724584121439,0.08930128,63972.0,63971.0,0.028]
[1724584122347,0.02680657,63972.0,63971.0,0.028]
[1724584136548,0.05213409,63972.0,63971.0,0.028]
[1724584139141,0.05213407,63972.0,63971.0,0.028]
[1724584139839,0.02680657,63972.0,63971.0,0.028]
[1724584140052,0.0521341,63972.0,63971.0,0.028]
[1724584144658,0.02680657,63972.0,63971.0,0.028]
[1724584151650,0.05213407,63972.0,63971.0,0.028]
[1724584159761,0.02680657,63972.0,63971.0,0.028]
[1724584166566,0.05213407,63972.0,63971.0,0.028]
[1724584168566,0.01993768,63972.0,63971.0,0.95943064]
[1724584168872,0.07815378,63973.0,63971.0,0.89696]
[1724584169064,0.07815378,63973.0,63972.0,0.0472]
[1724584169263,0.07815378,63973.0,63972.0,0.61616]
[1724584169568,0.07815378,63975.0,63972.0,1.01616]
[1724584169764,0.07815378,63975.0,63974.0,0.40760746]
[1724584169955,0.07815378,63975.0,63974.0,0.51760746]
[1724584170157,0.07815378,63976.0,63974.0,0.93972]
[1724584170361,0.07815378,63977.0,63974.0,0.4712]
[1724584171067,0.07815378,63977.0,63976.0,0.3612]
[1724584171265,0.10403072,63978.0,63976.0,0.4712]
[1724584171468,0.10403072,63978.0,63977.0,0.04678698]
[1724584171771,0.10403072,63978.0,63977.0,0.11678698]
[1724584172071,0.10403072,63978.0,63977.0,0.47798698]
[1724584172464,0.02587694,63978.0,63977.0,0.47798698]
[1724584172671,0.10403072,63978.0,63977.0,0.4312]
[1724584173263,0.10403072,63978.0,63977.0,0.0724]
[1724584173466,0.02587694,63978.0,63977.0,0.4332]
[1724584174776,0.02587694,63978.0,63977.0,0.4352]
[1724584174970,0.07269749,63978.0,63977.0,0.90412]
[1724584175175,0.02587694,63978.0,63977.0,0.90412]
[1724584176173,0.02587694,63978.0,63977.0,0.98206199]
[1724584176370,0.02587694,63978.0,63977.0,0.90412]
[1724584180172,0.02587694,63978.0,63977.0,0.54332]
[1724584180567,0.02587694,63978.0,63977.0,0.90412]
[1724584180963,0.02587694,63978.0,63977.0,0.54332]
[1724584181372,0.02587694,63978.0,63977.0,0.90412]
[1724584181573,0.02587694,63978.0,63977.0,0.4352]
[1724584181962,0.02587694,63978.0,63977.0,0.0744]
[1724584182168,0.02587694,63978.0,63977.0,0.4352]
[1724584182368,0.02587694,63978.0,63977.0,0.0744]
[1724584183077,0.02587694,63978.0,63977.0,0.4352]
[1724584183876,0.02587694,63978.0,63977.0,0.0744]
[1724584184674,0.02587694,63978.0,63977.0,0.4352]
[1724584185063,0.02587694,63978.0,63977.0,0.0744]
[1724584185268,0.02587694,63978.0,63977.0,0.4352]
[1724584185974,0.02587694,63978.0,63977.0,0.0744]
[1724584186173,0.02587694,63978.0,63977.0,0.4352]
[1724584187777,0.02587694,63978.0,63977.0,0.0744]
[1724584187982,0.02587694,63978.0,63977.0,0.4352]
[1724584189976,0.08136904,63978.0,63977.0,0.4352]
[1724584190375,0.08136904,63978.0,63977.0,0.0744]
[1724584190978,0.08136904,63978.0,63977.0,0.4352]
[1724584192675,0.08136904,63978.0,63977.0,0.0744]
[1724584192870,0.08136904,63978.0,63977.0,0.4352]
[1724584193981,0.08136904,63978.0,63977.0,0.0744]
[1724584194175,0.05572654,63978.0,63977.0,0.4352]
[1724584195080,0.05572654,63978.0,63977.0,0.0744]
[1724584195275,0.05572654,63978.0,63977.0,0.4352]
[1724584196075,0.02555725,63978.0,63977.0,0.4352]
[1724584196673,0.00023444,63978.0,63977.0,0.15234199]
[1724584196878,0.00023444,63978.0,63977.0,0.51314199]
[1724584197474,0.00023444,63978.0,63977.0,0.63216355]
[1724584198484,0.04705373,63978.0,63977.0,0.55422156]
[1724584198687,0.04705373,63978.0,63977.0,0.55422149]
[1724584199578,0.04705373,63978.0,63977.0,0.19342149]
[1724584199779,0.04705373,63978.0,63977.0,1.42314149]
[1724584201682,0.00023444,63978.0,63977.0,1.06234149]
[1724584201984,0.00023444,63978.0,63977.0,1.42314149]
[1724584202380,0.00023444,63978.0,63977.0,1.51697596]
[1724584202980,0.00023444,63978.0,63977.0,1.56800676]
[1724584203579,0.00023444,63978.0,63977.0,1.56799824]
[1724584204379,0.00023444,63978.0,63977.0,1.16799824]
[1724584204577,0.0487,63986.0,63977.0,1.16799824]
[1724584204889,0.0487,63986.0,63984.0,0.3608]
[1724584204890,0.05548739,63985.0,63984.0,0.3608]
[1724584205090,0.05548739,63985.0,63984.0,0.4708]
[1724584205679,0.10931686,63985.0,63984.0,0.4708]
[1724584206083,0.09373136,63985.0,63984.0,0.4708]
[1724584206288,0.05548739,63985.0,63984.0,0.4708]
[1724584206587,0.05848739,63985.0,63984.0,0.4708]
[1724584208286,0.006,63985.0,63984.0,0.4708]
[1724584208488,0.06148855,63985.0,63984.0,0.4708]
[1724584210283,0.18647881,63985.0,63984.0,0.4708]
[1724584210484,0.09973285,63985.0,63984.0,0.4708]
[1724584210689,0.06148855,63985.0,63984.0,0.4708]
[1724584211886,0.006,63985.0,63984.0,0.5331949]
[1724584212688,0.3668,63985.0,63982.0,0.0623949]
[1724584212898,0.3668,63985.0,63981.0,0.0623949]
[1724584213199,0.3668,63985.0,63981.0,0.03]
[1724584213391,0.3668,63985.0,63984.0,0.0467476]
[1724584213598,0.3668,63985.0,63984.0,0.0463476]
[1724584213799,0.3638,63985.0,63983.0,0.0463476]
[1724584213985,0.3638,63985.0,63983.0,0.1163476]
[1724584214192,0.3658,63985.0,63983.0,0.07]
[1724584214589,0.005,63985.0,63983.0,0.07]
[1724584214795,0.3608,63984.0,63983.0,0.07]
[1724584216497,0.3638,63984.0,63983.0,0.07]
[1724584217193,0.003,63984.0,63983.0,0.07]
[1724584217394,0.3638,63984.0,63983.0,0.07]
[1724584217995,0.3642,63984.0,63983.0,0.07]
[1724584218294,0.3642,63984.0,63978.0,0.06262934]
[1724584218595,0.04683387,63979.0,63978.0,0.13262934]
[1724584218988,0.04723387,63979.0,63978.0,0.13262934]
[1724584219590,0.04723387,63979.0,63978.0,0.13362934]
[1724584219899,0.04723387,63979.0,63978.0,0.13262934]
[1724584220194,0.04723387,63979.0,63978.0,0.13362934]
[1724584220694,0.04723387,63979.0,63978.0,0.07123444]
[1724584220892,0.04723387,63979.0,63978.0,0.13354336]
[1724584221495,0.04723387,63979.0,63978.0,0.13454336]
[1724584224598,0.0004,63979.0,63978.0,0.07223444]
[1724584225701,0.06284516,63979.0,63978.0,0.07223444]
[1724584225897,0.10854516,63979.0,63978.0,0.07223444]
[1724584226092,0.0461,63979.0,63978.0,0.07223444]
[1724584226894,0.07142486,63979.0,63978.0,0.07223444]
[1724584227896,0.0461,63979.0,63978.0,0.07223444]
[1724584228203,0.07142492,63979.0,63978.0,0.07223444]
[1724584228508,0.0461,63979.0,63978.0,0.07223444]
[1724584229207,0.07142491,63979.0,63978.0,0.07223444]
[1724584229597,0.0461,63979.0,63978.0,0.07223444]
[1724584229792,0.07284554,63979.0,63978.0,0.07223444]
[1724584229999,0.09817049,63979.0,63978.0,0.07223444]
[1724584230201,0.07284554,63979.0,63978.0,0.07223444]
[1724584230697,0.09817089,63979.0,63978.0,0.07223444]
[1724584233005,0.09817139,63979.0,63978.0,0.07223444]
[1724584234909,0.13526237,63979.0,63978.0,0.07223444]
[1724584238503,0.07284554,63979.0,63978.0,0.07223444]
[1724584241400,0.07284554,63979.0,63978.0,0.00223444]
[1724584242000,0.09817172,63979.0,63978.0,0.00223444]
[1724584242201,0.19187348,63979.0,63978.0,0.00223444]
[1724584247613,0.12834487,63979.0,63978.0,0.00223444]
[1724584247806,0.09817172,63979.0,63978.0,0.00223444]
[1724584248008,0.12834491,63979.0,63978.0,0.00223444]
[1724584250018,0.07284554,63979.0,63978.0,0.00223444]
[1724584252018,0.15093901,63979.0,63978.0,0.00223444]
[1724584252516,0.07284554,63979.0,63978.0,0.00223444]
[1724584255311,0.15093901,63979.0,63978.0,0.00223444]
[1724584256216,0.07284554,63979.0,63978.0,0.00223444]
[1724584256918,0.12834487,63979.0,63978.0,0.00223444]
[1724584259415,0.07284554,63979.0,63978.0,0.00223444]
[1724584259607,0.12834511,63979.0,63978.0,0.00223444]
[1724584261711,0.08264511,63979.0,63978.0,0.00223444]
[1724584261918,0.08264511,63979.0,63978.0,0.01223444]
[1724584264923,0.10528483,63979.0,63978.0,0.01223444]
[1724584267320,0.02714554,63979.0,63978.0,0.01223444]
[1724584274830,0.05247174,63979.0,63978.0,0.01223444]
[1724584278734,0.10529471,63979.0,63978.0,0.01223444]
[1724584278932,0.08264433,63979.0,63978.0,0.01223444]
[1724584281140,0.0524714,63979.0,63978.0,0.01223444]
[1724584281339,0.02714554,63979.0,63978.0,0.06113444]
[1724584281540,0.0524714,63979.0,63978.0,0.06113444]
[1724584286538,0.05246948,63979.0,63978.0,0.06113444]
[1724584286945,0.07398827,63979.0,63978.0,0.06113444]
[1724584289439,0.07398827,63979.0,63978.0,0.12341637]
[1724584290658,0.07398827,63979.0,63978.0,0.06113444]
[1724584290659,0.02714554,63979.0,63978.0,0.06113444]
[1724584293939,0.08264025,63979.0,63978.0,0.06113444]
[1724584295442,0.15206048,63979.0,63978.0,0.06113444]
[1724584295646,0.20755519,63979.0,63978.0,0.06113444]
[1724584296344,0.21563296,63979.0,63978.0,0.06113444]
[1724584296555,0.20755512,63979.0,63978.0,0.06113444]
[1724584300649,0.20755512,63979.0,63978.0,0.01223444]
[1724584301261,0.05589464,63979.0,63978.0,0.88115444]
[1724584301448,0.02572397,63979.0,63978.0,0.93095444]
[1724584301853,0.05589227,63979.0,63978.0,0.53095444]
[1724584302052,0.04723143,63979.0,63978.0,0.48115444]
[1724584302256,0.0004,63979.0,63978.0,0.01223444]
[1724584302455,0.0481,63979.0,63978.0,0.01223444]
[1724584309263,0.0951,63979.0,63978.0,0.01223444]
[1724584312967,0.0004,63979.0,63978.0,0.01223444]
[1724584313183,0.04726886,63979.0,63978.0,0.13126141]
[1724584313467,0.0004,63979.0,63978.0,0.13126141]
[1724584315766,0.0004,63979.0,63978.0,0.13125926]
[1724584316667,0.0004,63979.0,63978.0,0.20914347]
[1724584316861,0.0004,63979.0,63978.0,0.13125926]
[1724584317166,0.05589275,63979.0,63978.0,0.01223444]
[1724584319668,0.05589273,63979.0,63978.0,0.01223444]
[1724584324077,0.0004,63979.0,63978.0,0.20914045]
[1724584327573,0.0004,63979.0,63978.0,0.1312583]
[1724584330972,0.0004,63979.0,63978.0,0.20914588]
[1724584331170,0.0004,63979.0,63978.0,0.13125948]
[1724584332278,0.02572278,63979.0,63978.0,0.01223444]
[1724584333270,0.119434,63979.0,63978.0,0.01223444]
[1724584335481,0.02572305,63979.0,63978.0,0.01223444]
[1724584339175,0.0004,63979.0,63978.0,0.13125721]
[1724584339772,0.0004,63979.0,63978.0,0.49205721]
[1724584340276,0.0004,63979.0,63978.0,0.13125721]
[1724584340583,0.0004,63979.0,63978.0,0.49205721]
[1724584340775,0.0004,63979.0,63978.0,0.13125721]
[1724584341375,0.0004,63979.0,63978.0,0.49205721]
[1724584342274,0.04726437,63979.0,63978.0,0.49205721]
[1724584342868,0.04726437,63979.0,63978.0,0.13125721]
[1724584343276,0.04726437,63979.0,63978.0,0.49205721]
[1724584344979,0.04726437,63979.0,63978.0,0.37303444]
[1724584345180,0.04726437,63979.0,63978.0,0.49205746]
[1724584346672,0.0004,63979.0,63978.0,0.49205746]
[1724584347285,0.0004,63979.0,63978.0,0.37303444]
[1724584347286,0.02572316,63979.0,63978.0,0.37303444]
[1724584348071,0.02572316,63979.0,63978.0,0.01223444]
[1724584348278,0.02572316,63979.0,63978.0,0.37303444]
[1724584349386,0.02572316,63979.0,63978.0,0.01223444]
[1724584349581,0.02572316,63979.0,63978.0,0.37303444]
[1724584350578,0.02572316,63979.0,63978.0,0.01223444]
[1724584350775,0.02572316,63979.0,63978.0,0.37303444]
[1724584352182,0.0004,63979.0,63978.0,0.37303444]
[1724584352687,0.0004,63979.0,63978.0,0.01223444]
[1724584352884,0.0004,63979.0,63978.0,0.37303444]
[1724584354186,0.0004,63979.0,63978.0,0.49205759]
[1724584355081,0.0004,63979.0,63978.0,0.13125759]
[1724584355482,0.0004,63979.0,63978.0,0.49205759]
[1724584356484,0.04727864,63979.0,63978.0,0.49205759]
[1724584357688,0.04727864,63979.0,63978.0,0.13125759]
[1724584357984,0.04727864,63979.0,63978.0,0.49205759]
[1724584358690,0.04727864,63979.0,63978.0,0.13125759]
[1724584358891,0.04727864,63979.0,63978.0,0.49205759]
[1724584359689,0.0004,63979.0,63978.0,0.49205759]
[1724584362394,0.04727864,63979.0,63978.0,0.49205759]
[1724584364698,0.04727864,63979.0,63978.0,0.13125759]
[1724584364995,0.04727864,63979.0,63978.0,0.13125629]
[1724584365296,0.04727864,63979.0,63978.0,0.49205629]
[1724584368189,0.04727864,63979.0,63978.0,0.13125629]
[1724584368388,0.04727864,63979.0,63978.0,0.49205629]
[1724584368900,0.0004,63979.0,63978.0,0.49205629]
[1724584369286,0.0004,63979.0,63978.0,0.43537087]
[1724584369287,0.07853134,63979.0,63978.0,0.43537087]
[1724584369500,0.07853134,63979.0,63978.0,0.37303444]
[1724584370791,0.07853134,63979.0,63978.0,0.01223444]
[1724584370991,0.07853134,63979.0,63978.0,0.37303444]
[1724584371789,0.07853134,63979.0,63978.0,0.01223444]
[1724584372091,0.07853134,63979.0,63978.0,0.37303444]
[1724584372292,0.0004,63979.0,63978.0,0.01223444]
[1724584372487,0.0004,63979.0,63978.0,0.37303444]
[1724584372886,0.0004,63979.0,63978.0,0.43537087]
[1724584375701,0.0004,63979.0,63978.0,0.37303444]
[1724584375994,0.06289018,63979.0,63978.0,0.37303444]
[1724584377297,0.0004,63979.0,63978.0,0.49204994]
[1724584379796,0.0004,63979.0,63978.0,0.49205035]
[1724584381097,0.0004,63979.0,63978.0,1.05442104]
[1724584381595,0.0004,63979.0,63978.0,0.22470104]
[1724584381800,0.0004,63979.0,63978.0,0.58550104]
[1724584382393,0.0004,63979.0,63978.0,0.96097035]
[1724584382596,0.0004,63979.0,63978.0,0.49205035]
[1724584384298,0.0004,63979.0,63978.0,0.37303444]
[1724584384899,0.0004,63979.0,63978.0,0.84195444]
[1724584386199,0.0004,63979.0,63978.0,1.24195444]
[1724584386510,0.04723567,63979.0,63978.0,1.24195444]
[1724584388000,0.0004,63979.0,63978.0,1.24195444]
[1724584388393,0.0004,63979.0,63978.0,1.60275444]
[1724584389410,0.0004,63979.0,63978.0,0.88115444]
[1724584389906,0.0004,63979.0,63978.0,1.60275444]
[1724584390594,0.0004,63979.0,63978.0,0.88115444]
[1724584391194,0.0004,63979.0,63978.0,1.60275444]
[1724584391594,0.0004,63979.0,63978.0,0.88115444]
[1724584392005,0.0004,63979.0,63978.0,1.60275444]
[1724584392402,0.02615386,63983.0,63978.0,1.86661881]
[1724584392601,0.09473567,63989.0,63981.0,0.09337359]
[1724584392807,0.09473567,63989.0,63988.0,0.06224907]
[1724584393107,0.09473567,63989.0,63988.0,0.16224907]
[1724584393510,0.12120841,63989.0,63988.0,0.16264907]
[1724584394804,0.12420841,63989.0,63988.0,0.16364907]
[1724584395501,0.12620841,63989.0,63988.0,0.1014]
[1724584396105,0.12720841,63989.0,63988.0,0.1024]
[1724584396307,0.08037274,63989.0,63988.0,0.1024]
[1724584407409,0.10569303,63989.0,63988.0,0.1024]
[1724584410813,0.19942178,63989.0,63988.0,0.1024]
[1724584412124,0.10569303,63989.0,63988.0,0.1024]
[1724584414414,0.08037274,63989.0,63988.0,0.1024]
[1724584422520,0.10569304,63989.0,63988.0,0.1024]
[1724584422919,0.10569304,63989.0,63988.0,0.14914974]
[1724584423119,0.19942179,63989.0,63988.0,0.1024]
[1724584429426,0.14288498,63989.0,63988.0,0.18021134]
[1724584437436,0.10569303,63989.0,63988.0,0.14914593]
[1724584437936,0.03132029,63989.0,63988.0,0.1024]
[1724584438134,0.006,63989.0,63988.0,0.1024]
[1724584439335,0.0528308,63989.0,63988.0,0.1024]
[1724584439640,0.006,63989.0,63988.0,0.1024]
[1724584441330,0.05281244,63989.0,63988.0,0.1024]
[1724584441945,0.05281244,63989.0,63988.0,0.824]
[1724584443428,0.05111244,63989.0,63988.0,0.1024]
[1724584443630,0.05111244,63989.0,63988.0,0.824]
[1724584444431,0.0043,63989.0,63988.0,0.94299222]
[1724584446337,0.0043,63989.0,63988.0,1.41183222]
[1724584447835,0.0043,63989.0,63988.0,1.50518957]
[1724584448265,0.0043,63989.0,63988.0,1.41183222]
[1724584450438,0.0043,63989.0,63988.0,0.69023222]
[1724584450753,0.0043,63989.0,63988.0,1.41183222]
[1724584452352,0.00023382,63991.0,63988.0,1.41183222]
[1724584452642,0.00023382,63991.0,63989.0,0.21229082]
[1724584452834,0.00023382,63991.0,63990.0,0.11899222]
[1724584453034,0.00023382,63991.0,63990.0,0.22939222]
[1724584453637,0.00023382,63991.0,63990.0,1.09819222]
[1724584453843,0.00323382,63991.0,63990.0,1.09819222]
[1724584454240,0.00323382,63991.0,63990.0,0.79149082]
[1724584454445,0.00323382,63991.0,63990.0,1.09819222]
[1724584454646,0.00323382,63991.0,63990.0,0.69919222]
[1724584455041,0.00323382,63991.0,63990.0,1.09919222]
[1724584455443,0.00023382,63991.0,63990.0,1.12528209]
[1724584455642,0.00023382,63991.0,63990.0,1.12628209]
[1724584457052,0.00023382,63991.0,63990.0,0.72628209]
[1724584458449,0.00023382,63991.0,63990.0,1.12628209]
[1724584458955,0.00023382,63991.0,63990.0,1.84788209]
[1724584459656,0.06267388,63991.0,63990.0,1.72888987]
[1724584461353,0.00023382,63991.0,63990.0,1.72888987]
[1724584461557,0.00023382,63991.0,63990.0,1.77552169]
[1724584461761,0.00023382,63991.0,63990.0,1.72888987]
[1724584464052,0.00023382,63991.0,63990.0,1.77552169]
[1724584464654,0.00023382,63991.0,63990.0,1.72888987]
[1724584466554,0.0942,64001.0,63990.0,1.99268796]
[1724584466751,0.0942,64001.0,64000.0,0.43851319]
[1724584466947,0.0942,64001.0,64000.0,0.6674865]
[1724584467351,0.0942,64001.0,64000.0,0.6678865]
[1724584467957,0.0942,64001.0,64000.0,0.59017333]
[1724584468453,0.0942,64001.0,64000.0,0.66789785]
[1724584468862,0.0942,64001.0,64000.0,0.30709785]
[1724584469050,0.0942,64001.0,64000.0,0.66789785]
[1724584469558,0.0942,64001.0,64000.0,0.66989785]
[1724584472963,0.0942,64001.0,64000.0,0.69556937]
[1724584474366,0.0942,64001.0,64000.0,0.61784485]
[1724584474560,0.11951259,64001.0,64000.0,0.49887152]
[1724584477251,0.1496697,64001.0,64000.0,0.49887152]
[1724584477457,0.1496697,64001.0,64000.0,0.13807152]
[1724584477652,0.1496697,64001.0,64000.0,0.49887152]
[1724584479263,0.1496697,64001.0,64000.0,0.4732]
[1724584479472,0.6184297,64001.0,64000.0,0.4732]
[1724584479961,0.65666495,64001.0,64000.0,0.4732]
[1724584481769,0.56296,64001.0,64000.0,0.5353832]
[1724584481957,0.60977053,64001.0,64000.0,0.5353832]
[1724584482665,0.14101053,64001.0,64000.0,0.5353832]
[1724584483274,0.14101053,64001.0,64000.0,0.4732]
[1724584483462,0.14101053,64001.0,64000.0,0.1124]
[1724584485470,0.14101053,64001.0,64000.0,0.17464528]
[1724584486359,0.0942,64001.0,64000.0,0.17464528]
[1724584486561,0.14101053,64001.0,64000.0,0.1124]
[1724584487570,0.14101053,64001.0,64000.0,0.17464085]
[1724584487762,0.0942,64001.0,64000.0,0.1124]
[1724584490361,0.0942,64001.0,64000.0,0.17463361]
[1724584490571,0.56296,64001.0,64000.0,0.15908097]
[1724584490772,0.46876,64000.0,63997.0,0.0466914]
[1724584490969,0.0780302,63999.0,63994.0,0.04692584]
[1724584491268,0.3608,63995.0,63994.0,0.00023444]
[1724584491666,1.23,63995.0,63994.0,0.00023444]
[1724584492272,1.74,63995.0,63994.0,0.01023444]
[1724584493070,1.74,63995.0,63994.0,0.01123444]
[1724584493471,1.74,63995.0,63994.0,0.01223444]
[1724584494276,1.8043342,63995.0,63994.0,0.00223444]
[1724584494576,1.83020329,63995.0,63994.0,0.00223444]
[1724584496273,1.76786909,63995.0,63994.0,0.00223444]
[1724584496675,1.79318921,63995.0,63994.0,0.00223444]
[1724584497377,1.76786909,63995.0,63994.0,0.00223444]
[1724584498375,1.84574199,63995.0,63994.0,0.00223444]
[1724584500373,1.76786909,63995.0,63994.0,0.00223444]
[1724584500776,1.76786909,63995.0,63994.0,0.01223444]
[1724584500980,1.76786909,63995.0,63994.0,0.00223444]
[1724584501478,1.76786909,63995.0,63994.0,0.01223444]
[1724584504274,1.84574179,63995.0,63994.0,0.01223444]
[1724584504582,1.44574179,63995.0,63994.0,0.01223444]
[1724584504874,1.36786909,63995.0,63994.0,0.01223444]
[1724584505376,0.38906909,63995.0,63994.0,0.01223444]
[1724584507482,0.02826909,63995.0,63994.0,0.01223444]
[1724584507783,0.38906909,63995.0,63994.0,0.01223444]
[1724584511985,0.46694179,63995.0,63994.0,0.01223444]
[1724584512382,0.10614179,63995.0,63994.0,0.01223444]
[1724584512584,0.02826909,63995.0,63994.0,0.01223444]
[1724584513581,0.09062312,63995.0,63994.0,0.01223444]
[1724584518693,0.09062312,63995.0,63994.0,0.37303444]
[1724584519383,0.02826909,63995.0,63994.0,0.37303444]
[1724584521588,0.02626909,63995.0,63994.0,0.37103444]